lending/lending_fUSD_20260222
["ID","MTS","AMOUNT","RATE_DAILY","PERIOD"]
[406337655,1771765838971,-862.61574328,0.00016605,2]
[406337656,1771765838980,-502.65175273,0.00016635,2]
[406337657,1771765838990,-500.0,0.00016635,2]
[406337658,1771765838999,-500.0,0.0001664,2]
[406337659,1771765839010,-500.0,0.0001664,2]
[406337660,1771765839019,-500.0,0.0001664,2]
[406337661,1771765839029,-150.0,0.0001665,2]
[406337662,1771765839039,-250.90005908,0.0001665,2]
[406337663,1771765839049,-587.38563793,0.0001665,2]
[406337664,1771765839058,-150.0,0.0001665,2]
[406337665,1771765839068,-150.0,0.0001665,2]
[406337666,1771765839078,-150.0,0.0001665,2]
[406337667,1771765839087,-150.0,0.0001665,2]
[406337668,1771765839101,-552.87914705,0.00016654,2]
[406337669,1771765839110,-1035.0,0.00016663,2]
[406337670,1771765839119,-284.0,0.00016685,2]
[406337671,1771765839129,-500.0,0.00016689,2]
[406337672,1771765839139,-500.0,0.00016695,2]
[406337673,1771765839148,-500.0,0.00016695,2]
[406337674,1771765839157,-500.0,0.00016695,2]
[406337675,1771765839169,-536.0,0.00016697,2]
[406337676,1771765839178,-800.0,0.000167,6]
[406337677,1771765839188,-272.20250359,0.00016705,2]
[406337678,1771765839198,-150.0,0.00016705,2]
[406337679,1771765839207,-150.0,0.00016705,2]
[406337680,1771765839216,-150.0,0.00016705,2]
[406337681,1771765839225,-150.0,0.00016705,2]
[406337682,1771765839235,-195.0,0.00016718,2]
[406337683,1771765839244,-5000.0,0.00016718,2]
[406337684,1771765839254,-250.0,0.00016718,2]
[406337685,1771765839264,-500.0,0.00016718,2]
[406337686,1771765839273,-194.0122658,0.00016718,2]
[406337687,1771765839283,-2500.0,0.00016718,2]
[406337688,1771765839292,-2500.0,0.00016718,2]
[406337689,1771765839301,-2500.0,0.00016718,2]
[406337690,1771765839311,-300.0,0.00016718,2]
[406337691,1771765839320,-600.0,0.00016718,2]
[406337692,1771765839329,-1600.0,0.00016721,2]
[406337693,1771765839338,-552.87914705,0.00016727,2]
[406337694,1771765839347,-862.61574321,0.00016738,2]
[406337695,1771765839356,-500.0,0.00016744,2]
[406337696,1771765839366,-500.0,0.0001675,2]
[406337697,1771765839375,-500.0,0.0001675,2]
[406337698,1771765839383,-458.70315985,0.0001675,2]
[406337699,1771765839393,-150.0,0.00016759,2]
[406337700,1771765839402,-150.0,0.00016759,2]
[406337701,1771765839411,-150.0,0.00016759,2]
[406337702,1771765839421,-150.0,0.00016759,2]
[406337703,1771765839430,-150.0,0.0001677,2]
[406337704,1771765839439,-165.43649027,0.00016781,2]
[406337705,1771765839448,-3240.0,0.00016784,2]
[406337706,1771765839458,-456.0,0.0001679,2]
[406337707,1771765839467,-500.0,0.00016799,2]
[406337708,1771765839477,-42309.44585446,0.00016799,2]
[406337709,1771765839486,-33134.73889459,0.000168,2]
[406337710,1771765839495,-1100.0,0.000168,6]
[406337711,1771765839505,-500.0,0.00016805,2]
[406337712,1771765839515,-500.0,0.00016805,2]
[406337713,1771765839524,-150.0,0.00016814,2]
[406337714,1771765839533,-150.0,0.00016814,2]
[406337715,1771765839543,-150.0,0.00016814,2]
[406337716,1771765839552,-150.0,0.00016814,2]
[406337717,1771765839561,-500.0,0.00016854,2]
[406337718,1771765839571,-500.0,0.00016859,2]
[406337719,1771765839580,-500.0,0.0001686,2]
[406337720,1771765839590,-282.54357495,0.0001686,2]
[406337721,1771765839600,-500.0,0.0001686,2]
[406337722,1771765839609,-500.0,0.0001686,2]
[406337723,1771765839619,-500.0,0.0001686,2]
[406337724,1771765839628,-304.47590648,0.0001686,2]
[406337725,1771765839638,-500.0,0.0001686,2]
[406337726,1771765839648,-200.0,0.0001686,2]
[406337727,1771765839657,-500.0,0.0001686,2]
[406337728,1771765839666,-170.31988359,0.0001686,2]
[406337729,1771765839676,-500.0,0.0001686,2]
[406337730,1771765839685,-283.03296635,0.0001686,2]
[406337731,1771765839694,-509.07170712,0.0001686,2]
[406337732,1771765839703,-151.0,0.0001686,2]
[406337733,1771765839713,-151.0,0.0001686,2]
[406337734,1771765839722,-151.0,0.0001686,2]
[406337735,1771765839731,-151.0,0.0001686,2]
[406337736,1771765839740,-151.0,0.0001686,2]
[406337737,1771765839749,-151.0,0.0001686,2]
[406337738,1771765839759,-151.0,0.0001686,2]
[406337739,1771765839768,-151.0,0.0001686,2]
[406337740,1771765839777,-151.0,0.0001686,2]
[406337741,1771765839786,-151.0,0.0001686,2]
[406337742,1771765839795,-151.0,0.0001686,2]
[406337743,1771765839805,-151.0,0.0001686,2]
[406337744,1771765839813,-151.0,0.0001686,2]
[406337745,1771765839823,-151.0,0.0001686,2]
[406337746,1771765839832,-151.0,0.0001686,2]
[406337747,1771765839841,-661.89,0.0001686,3]
[406337748,1771765839850,-600.0,0.0001686,2]
[406337749,1771765839860,-500.0,0.00016868,2]
[406337750,1771765839869,-250.0,0.00016869,2]
[406337751,1771765839878,-250.0,0.00016869,2]
[406337752,1771765839888,-250.0,0.00016869,2]
[406337753,1771765839897,-250.0,0.00016869,2]
[406337754,1771765839906,-500.0,0.00016869,2]
[406337755,1771765839915,-500.0,0.00016869,2]
[406337756,1771765839924,-269.30860549,0.00016869,2]
[406337757,1771765839933,-500.0,0.00016869,2]
[406337758,1771765839942,-500.0,0.00016869,2]
[406337759,1771765839951,-500.0,0.00016869,2]
[406337760,1771765839959,-500.0,0.00016869,2]
[406337761,1771765839968,-500.0,0.00016869,2]
[406337762,1771765839978,-500.0,0.00016869,2]
[406337763,1771765839986,-500.0,0.00016869,2]
[406337765,1771765840135,-500.0,0.00016869,2]
[406337766,1771765840146,-500.0,0.00016869,2]
[406337767,1771765840155,-500.0,0.00016869,2]
[406337768,1771765840166,-211.14640207,0.00016869,2]
[406337769,1771765840175,-611.31843412,0.0001687,2]
[406337770,1771765840184,-862.61574321,0.00016871,2]
[406337771,1771765840193,-195.27117149,0.00016893,2]
[406337772,1771765840202,-1400.0,0.000169,6]
[406337773,1771765840211,-500.0,0.00016909,2]
[406337774,1771765840220,-500.0,0.00016914,2]
[406337775,1771765840229,-500.0,0.00016963,2]
[406337776,1771765840238,-1164653.2398,0.0001697,2]
[406337777,1771765840247,-1000.0,0.00016971,2]
[406337778,1771765840257,-300.0,0.00016971,2]
[406337779,1771765840266,-263.6441,0.00016971,2]
[406337780,1771765840275,-862.61574321,0.00017003,2]
[406337781,1771765840284,-500.0,0.00017018,2]
[406337782,1771765840293,-500.0,0.00017073,2]
[406337783,1771765840303,-309.0,0.00017118,2]
[406337784,1771765840312,-862.61574321,0.00017136,2]
[406337785,1771765840322,-200.0,0.00017159,3]
[406337786,1771765840331,-369.0,0.00017226,2]
[406337787,1771765840340,-195.27117149,0.00017228,2]
[406337788,1771765840349,-2626.22937432,0.00017256,2]
[406337789,1771765840358,-862.61574321,0.00017269,2]
[406337790,1771765840367,-165.43649027,0.0001734,2]
[406337791,1771765840376,-420.0,0.00017342,2]
[406337792,1771765840385,-1680.0,0.00017365,2]
[406337793,1771765840394,-862.61574321,0.00017402,2]
[406337794,1771765840404,-862.61574321,0.00017534,2]
[406337795,1771765840414,-195.27117149,0.00017564,2]
[406337796,1771765840423,-500.0,0.00017616,2]
[406337797,1771765840432,-150.0,0.00017616,2]
[406337798,1771765840441,-862.61574321,0.00017667,2]
[406337799,1771765840450,-500.0,0.00017671,2]
[406337800,1771765840459,-150.0,0.00017671,2]
[406337801,1771765840468,-500.0,0.00017726,2]
[406337802,1771765840477,-150.0,0.00017726,2]
[406337803,1771765840486,-224.55054318,0.0001778,2]
[406337804,1771765840495,-862.61574321,0.000178,2]
[406337805,1771765840505,-200.0,0.000178,6]
[406337806,1771765840514,-534.61239847,0.00017808,2]
[406337807,1771765840523,-534.61239847,0.00017808,2]
[406337808,1771765840533,-534.61239847,0.00017808,2]
[406337809,1771765840542,-534.61239847,0.00017808,2]
[406337810,1771765840551,-534.61239847,0.00017808,2]
[406337811,1771765840560,-534.61239847,0.00017808,2]
[406337812,1771765840569,-534.61239847,0.00017808,2]
[406337813,1771765840578,-534.61239847,0.00017808,2]
[406337814,1771765840588,-534.61239847,0.00017808,2]
[406337815,1771765840607,-534.61239847,0.00017808,2]
[406337816,1771765840618,-534.61239847,0.00017808,2]
[406337817,1771765840627,-534.61239847,0.00017808,2]
[406337818,1771765840637,-534.61239847,0.00017808,2]
[406337819,1771765840646,-534.61239847,0.00017808,2]
[406337820,1771765840655,-534.61239847,0.00017808,2]
[406337821,1771765840665,-534.61239847,0.00017808,2]
[406337822,1771765840675,-561.34301841,0.00017808,2]
[406337823,1771765840685,-561.34301841,0.00017808,2]
[406337824,1771765840696,-561.34301841,0.00017808,2]
[406337825,1771765840706,-561.34301841,0.00017808,2]
[406337826,1771765840716,-561.34301841,0.00017808,2]
[406337827,1771765840725,-561.34301841,0.00017808,2]
[406337828,1771765840735,-561.34301841,0.00017808,2]
[406337829,1771765840744,-561.34301841,0.00017808,2]
[406337830,1771765840754,-561.34301841,0.00017808,2]
[406337831,1771765840764,-561.34301841,0.00017808,2]
[406337832,1771765840774,-200.0,0.000179,6]
[406337833,1771765840783,-165.43649027,0.000179,2]
[406337834,1771765840793,-195.27117149,0.000179,2]
[406337835,1771765840802,-500.0,0.000179,2]
[406337836,1771765840812,-500.0,0.000179,2]
[406337837,1771765840821,-500.0,0.000179,2]
[406337838,1771765840831,-500.0,0.000179,2]
[406337839,1771765840840,-500.0,0.000179,2]
[406337840,1771765840849,-500.0,0.000179,2]
[406337841,1771765840859,-500.0,0.000179,2]
[406337842,1771765840868,-500.0,0.000179,2]
[406337843,1771765840877,-500.0,0.000179,2]
[406337844,1771765840887,-500.0,0.000179,2]
[406337845,1771765840898,-500.0,0.000179,2]
[406337846,1771765840908,-500.0,0.000179,2]
[406337847,1771765840918,-500.0,0.000179,2]
[406337849,1771765840928,-500.0,0.000179,2]
[406337851,1771765840937,-500.0,0.000179,2]
[406337852,1771765840948,-500.0,0.000179,2]
[406337853,1771765840958,-500.0,0.000179,2]
[406337854,1771765840968,-500.0,0.000179,2]
[406337855,1771765840978,-500.0,0.000179,2]
[406337856,1771765840987,-500.0,0.000179,2]
[406337857,1771765840997,-500.0,0.000179,2]
[406337858,1771765841006,-500.0,0.000179,2]
[406337859,1771765841016,-500.0,0.000179,2]
[406337860,1771765841027,-500.0,0.000179,2]
[406337861,1771765841037,-500.0,0.000179,2]
[406337862,1771765841048,-500.0,0.000179,2]
[406337863,1771765841058,-500.0,0.000179,2]
[406337864,1771765841068,-500.0,0.000179,2]
[406337865,1771765841078,-500.0,0.000179,2]
[406337866,1771765841087,-500.0,0.000179,2]
[406337867,1771765841101,-500.0,0.000179,2]
[406337868,1771765841111,-500.0,0.000179,2]
[406337869,1771765841120,-500.0,0.000179,2]
[406337870,1771765841131,-500.0,0.000179,2]
[406337871,1771765841140,-500.0,0.000179,2]
[406337872,1771765841150,-500.0,0.000179,2]
[406337873,1771765841159,-500.0,0.000179,2]
[406337874,1771765841171,-500.0,0.000179,2]
[406337875,1771765841180,-500.0,0.000179,2]
[406337876,1771765841189,-500.0,0.000179,2]
[406337877,1771765841199,-500.0,0.000179,2]
[406337878,1771765841208,-500.0,0.000179,2]
[406337879,1771765841217,-500.0,0.000179,2]
[406337880,1771765841226,-500.0,0.000179,2]
[406337881,1771765841236,-500.0,0.000179,2]
[406337882,1771765841245,-500.0,0.000179,2]
[406337883,1771765841255,-500.0,0.000179,2]
[406337884,1771765841265,-500.0,0.000179,2]
[406337885,1771765841274,-482.78681073,0.000179,2]
[406337886,1771765841286,-226.73826614,0.00017982,2]
[406337887,1771765841297,-7016.2770815,0.00017999,2]
[406337888,1771765841308,-1973.2027602,0.00017999,2]
[406337889,1771765841318,-3002697.48635937,0.00018,2]
[406337890,1771765841327,-7519.73980545,0.00018,2]
[406337891,1771765841337,-2147671.87291466,0.00018,2]
[406337892,1771765841348,-2000.0,0.00018,2]
[406337893,1771765841358,-151.0,0.00018,2]
[406337894,1771765841367,-151.0,0.00018,2]
[406337895,1771765841376,-151.0,0.00018,2]
[406337896,1771765841385,-151.0,0.00018,2]
[406337897,1771765841413,-151.0,0.00018,2]
[406337898,1771765841422,-151.0,0.00018,2]
[406337899,1771765841431,-151.0,0.00018,2]
[406337900,1771765841441,-256.047177,0.00018,2]
[406337901,1771765841451,-256.047177,0.00018,2]
[406337902,1771765841460,-256.047177,0.00018,2]
[406337903,1771765841470,-256.047177,0.00018,2]
[406337904,1771765841479,-256.047177,0.00018,2]
[406337905,1771765841488,-256.047177,0.00018,2]
[406337906,1771765841498,-256.047177,0.00018,2]
[406337907,1771765841508,-256.047177,0.00018,2]
[406337908,1771765841518,-151.0,0.00018,2]
[406337909,1771765841527,-151.0,0.00018,2]
[406337910,1771765841537,-151.0,0.00018,2]
[406337911,1771765841546,-151.0,0.00018,2]
[406337912,1771765841556,-151.4934,0.00018,2]
[406337913,1771765841565,-151.0,0.00018,2]
[406337914,1771765841575,-151.0,0.00018,2]
[406337915,1771765841585,-151.0,0.00018,2]
[406337916,1771765841595,-151.0,0.00018,2]
[406337917,1771765841604,-151.0,0.00018,2]
[406337918,1771765841614,-151.0,0.00018,2]
[406337919,1771765841623,-151.0,0.00018,2]
[406337920,1771765841632,-151.0,0.00018,2]
[406337921,1771765841642,-151.0,0.00018,2]
[406337922,1771765841651,-151.0,0.00018,2]
[406337923,1771765841661,-151.0,0.00018,2]
[406337924,1771765841670,-236.576536,0.00018,2]
[406337925,1771765841679,-151.0,0.00018,2]
[406337926,1771765841689,-151.0,0.00018,2]
[406337927,1771765841699,-151.0,0.00018,2]
[406337928,1771765841708,-151.0,0.00018,2]
[406337929,1771765841718,-151.0,0.00018,2]
[406337930,1771765841727,-151.0,0.00018,2]
[406337931,1771765841736,-573.153477,0.00018,2]
[406337932,1771765841746,-573.153477,0.00018,2]
[406337933,1771765841755,-573.153477,0.00018,2]
[406337934,1771765841766,-573.153477,0.00018,2]
[406337935,1771765841775,-573.153477,0.00018,2]
[406337936,1771765841784,-573.153477,0.00018,2]
[406337937,1771765841794,-573.153477,0.00018,2]
[406337938,1771765841803,-573.153477,0.00018,2]
[406337939,1771765841813,-151.0,0.00018,2]
[406337940,1771765841823,-151.0,0.00018,2]
[406337941,1771765841832,-150.0,0.00018,2]
[406337942,1771765841842,-151.0,0.00018,2]
[406337943,1771765841851,-151.0,0.00018,2]
[406337944,1771765841860,-151.0,0.00018,2]
[406337945,1771765841870,-151.0,0.00018,2]
[406337946,1771765841879,-151.0,0.00018,2]
[406337947,1771765841888,-151.0,0.00018,2]
[406337948,1771765841898,-151.0,0.00018,2]
[406337949,1771765841907,-151.0,0.00018,2]
[406337950,1771765841916,-151.0,0.00018,2]
[406337951,1771765841926,-151.0,0.00018,2]
[406337952,1771765841935,-151.0,0.00018,2]
[406337953,1771765841944,-932.890926,0.00018,2]
[406337954,1771765841954,-932.890926,0.00018,2]
[406337955,1771765841963,-932.890926,0.00018,2]
[406337956,1771765841972,-932.890926,0.00018,2]
[406337957,1771765841981,-386.276401,0.00018,2]
[406337958,1771765841991,-386.276401,0.00018,2]
[406337959,1771765842000,-932.890926,0.00018,2]
[406337960,1771765842009,-932.890926,0.00018,2]
[406337961,1771765842018,-386.276401,0.00018,2]
[406337962,1771765842027,-386.276401,0.00018,2]
[406337963,1771765842036,-932.890926,0.00018,2]
[406337964,1771765842045,-386.276401,0.00018,2]
[406337965,1771765842054,-932.890926,0.00018,2]
[406337966,1771765842063,-386.276401,0.00018,2]
[406337967,1771765842071,-386.276401,0.00018,2]
[406337968,1771765842081,-386.276401,0.00018,2]
[406337969,1771765842090,-151.0,0.00018,2]
[406337970,1771765842102,-151.0,0.00018,2]
[406337971,1771765842111,-151.0,0.00018,2]
[406337972,1771765842120,-151.0,0.00018,2]
[406337973,1771765842129,-151.0,0.00018,2]
[406337974,1771765842140,-210.791272,0.00018,2]
[406337975,1771765842150,-3916.162301,0.0001801,2]
[406337976,1771765842159,-2851.35574521,0.00018021,2]
[406337977,1771765842169,-1000.0,0.000181,2]
[406337978,1771765842179,-151.0,0.00018101,2]
[406337979,1771765842187,-1000.0,0.00018226,2]
[406337980,1771765842196,-1600.0,0.00018579,2]
[406337981,1771765842205,-251.31917633,0.0001863,2]
[406337982,1771765842214,-200.0,0.00019,2]
[406337983,1771765842224,-193.0,0.00019,2]
[406337984,1771765842235,-200.0,0.00019,12]
[406337985,1771765842244,-392.65378736,0.00019,2]
[406337986,1771765842255,-154.45264033,0.00019,2]
[406337987,1771765842264,-151.0,0.00019,2]
[406337988,1771765842273,-2351.0,0.00019085,2]
[406337989,1771765842283,-151.0,0.00019148,2]
[406337990,1771765842293,-151.0,0.00019148,2]
[406337991,1771765842303,-151.0,0.00019148,2]
[406337992,1771765842313,-220.78276103,0.00019148,2]
[406337993,1771765842323,-151.0,0.00019178,2]
[406337994,1771765842333,-151.0,0.00019178,2]
[406337995,1771765842342,-151.0,0.00019178,2]
[406337996,1771765842353,-151.0,0.00019178,2]
[406337997,1771765842362,-151.0,0.00019178,2]
[406337998,1771765842371,-151.0,0.00019178,2]
[406337999,1771765842382,-152.344841,0.00019178,2]
[406338000,1771765842397,-151.0,0.00019178,2]
[406338001,1771765842407,-151.0,0.00019178,2]
[406338002,1771765842416,-151.0,0.00019178,2]
[406338003,1771765842425,-151.0,0.00019178,2]
[406338004,1771765842434,-150.0,0.00019178,2]
[406338005,1771765842445,-200.0,0.00019317,4]
[406338006,1771765842455,-250.0,0.00019726,2]
[406338007,1771765842464,-2000.0,0.0002,2]
[406338008,1771765842474,-151.0,0.0002,2]
[406338009,1771765842483,-2000.0,0.0002001,2]
[406338010,1771765842494,-2000.0,0.0002002,2]
[406338011,1771765842503,-2698.754019,0.0002003,2]
[406338012,1771765842514,-209.0,0.00020077,2]
[406338013,1771765842526,-275.37004532,0.00020161,5]
[406338014,1771765842535,-1000.0,0.00020251,2]
[406338015,1771765842545,-266.05548305,0.00020274,2]
[406338016,1771765842554,-1565.5430288,0.00020279,2]
[406338017,1771765842563,-209.0,0.00020369,2]
[406338018,1771765842573,-209.0,0.00020392,2]
[406338019,1771765842582,-209.0,0.00020399,2]
[406338020,1771765842591,-209.0,0.00020434,2]
[406338021,1771765842600,-1600.0,0.00020436,2]
[406338022,1771765842610,-209.0,0.00020476,2]
[406338023,1771765842620,-155.14,0.00020548,2]
[406338024,1771765842630,-209.0,0.00020706,2]
[406338025,1771765842643,-209.0,0.00020747,2]
[406338026,1771765842652,-209.0,0.00020747,2]
[406338027,1771765842662,-349.3198667,0.00020788,2]
[406338028,1771765842671,-209.0,0.00020839,2]
[406338029,1771765842681,-209.0,0.00020879,2]
[406338030,1771765842692,-3292.0,0.00020976,2]
[406338031,1771765842701,-209.0,0.00021047,2]
[406338032,1771765842710,-209.0,0.00021074,2]
[406338033,1771765842719,-209.0,0.00021125,2]
[406338034,1771765842728,-209.0,0.00021229,2]
[406338035,1771765842738,-209.0,0.00021344,2]
[406338036,1771765842747,-208.52,0.00021407,14]
[406338037,1771765842756,-209.0,0.00021439,2]
[406338038,1771765842767,-209.0,0.00021442,2]
[406338039,1771765842776,-209.0,0.00021474,2]
[406338040,1771765842784,-160.0,0.0002149,2]
[406338041,1771765842793,-209.0,0.00021558,2]
[406338042,1771765842802,-209.0,0.00021577,2]
[406338043,1771765842811,-1449.52,0.00021582,2]
[406338044,1771765842820,-611.31843411,0.0002159,2]
[406338045,1771765842829,-200.0,0.00021727,6]
[406338046,1771765842838,-150.0,0.00021749,2]
[406338047,1771765842847,-209.0,0.00021803,2]
[406338048,1771765842856,-209.0,0.00021815,2]
[406338049,1771765842865,-3045.54,0.00021918,2]
[406338050,1771765842874,-5000.0,0.00021918,2]
[406338051,1771765842883,-209.0,0.00021919,2]
[406338052,1771765842891,-204.96,0.00021921,2]
[406338053,1771765842900,-209.0,0.00021943,2]
[406338054,1771765842909,-151.0,0.00022,2]
[406338055,1771765842918,-197.08,0.00022013,2]
[406338056,1771765842927,-1210.0,0.00022263,2]
[406338057,1771765842936,-1000.0,0.00022276,2]
[406338058,1771765842946,-2454.0,0.00022285,2]
[406338059,1771765842955,-5977.0,0.00022285,2]
[406338060,1771765842965,-1600.0,0.00022294,2]
[406338061,1771765842974,-227.96,0.0002234,2]
[406338062,1771765842984,-559.036621,0.00022513,30]
[406338063,1771765842993,-186.837752,0.00022513,30]
[406338064,1771765843002,-1500.0,0.00022733,2]
[406338065,1771765843012,-150.0,0.00022767,2]
[406338066,1771765843021,-165.003,0.00022767,2]
[406338067,1771765843030,-1338.0,0.00022767,2]
[406338068,1771765843041,-618.0,0.00022767,2]
[406338069,1771765843052,-1276.0,0.00022767,2]
[406338070,1771765843061,-160.0,0.00023,2]
[406338071,1771765843070,-3206.0,0.00023054,2]
[406338072,1771765843080,-175.96,0.00023185,2]
[406338073,1771765843091,-678.55897621,0.000232,2]
[406338074,1771765843104,-200.0,0.000235,2]
[406338075,1771765843113,-161.63,0.00023503,30]
[406338076,1771765843123,-1240.61347426,0.00024,2]
[406338077,1771765843132,-423.83982989,0.0002421,2]
[406338078,1771765843144,-1000.0,0.00024301,2]
[406338079,1771765843153,-200.0,0.00024421,9]
[406338080,1771765843165,-507.65,0.00024658,2]
[406338081,1771765843174,-153.178362,0.00024658,2]
[406338082,1771765843184,-1000.0,0.00024658,2]
[406338083,1771765843193,-324.652155,0.00024658,2]
[406338084,1771765843202,-324.652155,0.00024658,2]
[406338085,1771765843211,-324.652155,0.00024658,2]
[406338086,1771765843221,-324.652155,0.00024658,2]
[406338087,1771765843230,-324.652155,0.00024658,2]
[406338088,1771765843240,-324.652155,0.00024658,2]
[406338090,1771765843249,-324.652155,0.00024658,2]
[406338091,1771765843258,-324.652155,0.00024658,2]
[406338092,1771765843270,-150.0,0.00024658,2]
[406338093,1771765843280,-175.94,0.00024775,2]
[406338094,1771765843292,-540.0,0.00025,2]
[406338095,1771765843301,-612.28323019,0.00025,2]
[406338097,1771765843311,-3051.35296469,0.00025,2]
[406338098,1771765843320,-167.70034267,0.00025,2]
[406338099,1771765843330,-151.0,0.00025,2]
[406338101,1771765843341,-1209.0,0.00025263,2]
[406338103,1771765843350,-438.151,0.00025285,2]
[406338104,1771765843360,-1386.94,0.0002546,2]
[406338105,1771765843370,-150.0,0.00025767,2]
[406338106,1771765843382,-618.0,0.00025767,2]
[406338107,1771765843393,-606.469,0.00025767,2]
[406338108,1771765843402,-150.0,0.0002589,2]
[406338109,1771765843416,-602.33228251,0.0002599,2]
[406338110,1771765843425,-217.00225735,0.00026,2]
[406338111,1771765843434,-237.08482495,0.000263,2]
[406338112,1771765843443,-611.31843411,0.00026309,2]
[406338113,1771765843452,-150.0,0.00026725,2]
[406338114,1771765843461,-500.0,0.00026797,120]
[406338115,1771765843470,-250.0,0.00027,2]
[406338116,1771765843479,-1037.17620724,0.00027,2]
[406338117,1771765843489,-530.0,0.00027,2]
[406338118,1771765843499,-2000.0,0.00027,2]
[406338119,1771765843508,-2489.679493,0.0002701,2]
[406338120,1771765843519,-150.0,0.00027185,2]
[406338121,1771765843528,-150.70892352,0.00027273,2]
[406338122,1771765843537,-150.0,0.00027369,2]
[406338123,1771765843546,-168.74532201,0.0002737,2]
[406338124,1771765843555,-259.6081877,0.0002737,2]
[406338125,1771765843564,-4122.0987762,0.0002739,2]
[406338126,1771765843574,-8144.25827698,0.0002739,2]
[406338127,1771765843583,-1000.0,0.00027397,20]
[406338128,1771765843592,-507.65,0.00027397,2]
[406338129,1771765843601,-520.92,0.00027397,2]
[406338130,1771765843611,-151.0,0.00027397,2]
[406338131,1771765843620,-151.0,0.00027397,2]
[406338132,1771765843630,-911.228652,0.00027397,2]
[406338138,1771765843774,-911.228652,0.00027397,2]
[406338140,1771765843784,-911.228652,0.00027397,2]
[406338142,1771765843794,-911.228652,0.00027397,2]
[406338143,1771765843803,-911.228652,0.00027397,2]
[406338144,1771765843813,-911.228652,0.00027397,2]
[406338145,1771765843822,-911.228652,0.00027397,2]
[406338146,1771765843830,-911.228652,0.00027397,2]
[406338147,1771765843840,-300.0,0.00027397,2]
[406338148,1771765843852,-504.790052,0.00027397,2]
[406338149,1771765843861,-504.790052,0.00027397,2]
[406338150,1771765843870,-504.790052,0.00027397,2]
[406338151,1771765843879,-504.790052,0.00027397,2]
[406338152,1771765843888,-504.790052,0.00027397,2]
[406338154,1771765843898,-504.790052,0.00027397,2]
[406338156,1771765843906,-504.790052,0.00027397,2]
[406338158,1771765843916,-504.790052,0.00027397,2]
[406338160,1771765843925,-281.176674,0.00027397,2]
[406338162,1771765843934,-281.176674,0.00027397,2]
[406338164,1771765843945,-281.176674,0.00027397,2]
[406338166,1771765843954,-281.176674,0.00027397,2]
[406338168,1771765843963,-281.176674,0.00027397,2]
[406338170,1771765843973,-281.176674,0.00027397,2]
[406338172,1771765843982,-281.176674,0.00027397,2]
[406338174,1771765843991,-281.176674,0.00027397,2]
[406338176,1771765844001,-182.06658955,0.00027416,2]
[406338178,1771765844010,-200.0,0.00027431,15]
[406338180,1771765844020,-201.82726027,0.000275,2]
[406338182,1771765844029,-551.34617508,0.000275,2]
[406338183,1771765844038,-500.0,0.00027648,2]